fUSD/lending_fUSD_20240224
["ID","MTS","AMOUNT","RATE_DAILY","PERIOD"]
[315074692,1708803128394,-500.0,0.00028493,2]
[315074693,1708803128403,-465.3156657,0.00028493,2]
[315074694,1708803128412,-544.36,0.00028493,2]
[315074695,1708803128422,-500.0,0.00028493,2]
[315074696,1708803128431,-617.97,0.00028493,2]
[315074697,1708803128441,-805.71,0.00028493,2]
[315074698,1708803128450,-2048.3,0.00028493,2]
[315074699,1708803128459,-521.38938157,0.00028493,2]
[315074700,1708803128469,-500.0,0.00028493,2]
[315074701,1708803128478,-500.0,0.00028493,2]
[315074702,1708803128487,-500.0,0.00028493,2]
[315074703,1708803128497,-500.0,0.00028493,2]
[315074704,1708803128507,-500.0,0.00028493,2]
[315074705,1708803128516,-580.62,0.00028493,2]
[315074706,1708803128526,-500.0,0.00028493,2]
[315074707,1708803128535,-500.0,0.00028493,2]
[315074708,1708803128544,-500.0,0.00028493,2]
[315074709,1708803128555,-500.0,0.00028493,2]
[315074710,1708803128564,-500.0,0.00028493,2]
[315074711,1708803128573,-500.0,0.00028493,2]
[315074712,1708803128583,-500.0,0.00028493,2]
[315074713,1708803128592,-500.0,0.00028493,2]
[315074714,1708803128601,-500.0,0.00028493,2]
[315074715,1708803128610,-500.0,0.00028493,2]
[315074716,1708803128619,-500.0,0.00028493,2]
[315074717,1708803128628,-500.0,0.00028493,2]
[315074718,1708803128638,-1603.43,0.00028493,2]
[315074719,1708803128647,-500.0,0.00028493,2]
[315074720,1708803128656,-500.0,0.00028493,2]
[315074721,1708803128666,-500.0,0.00028493,2]
[315074722,1708803128675,-500.0,0.00028493,2]
[315074723,1708803128684,-500.0,0.00028493,2]
[315074724,1708803128693,-500.0,0.00028493,2]
[315074725,1708803128702,-500.0,0.00028493,2]
[315074726,1708803128711,-590.28,0.00028493,2]
[315074727,1708803128721,-492.41628241,0.00028493,2]
[315074728,1708803128730,-500.0,0.00028493,2]
[315074729,1708803128740,-500.0,0.00028493,2]
[315074730,1708803128749,-500.0,0.00028493,2]
[315074731,1708803128759,-500.0,0.00028493,2]
[315074732,1708803128768,-500.0,0.00028493,2]
[315074733,1708803128777,-500.0,0.00028493,2]
[315074734,1708803128787,-500.0,0.00028493,2]
[315074735,1708803128796,-500.0,0.00028493,2]
[315074736,1708803128806,-500.0,0.00028493,2]
[315074737,1708803128816,-500.0,0.00028493,2]
[315074738,1708803128825,-1420.04,0.00028493,2]
[315074739,1708803128834,-500.0,0.00028493,2]
[315074740,1708803128844,-397.62205146,0.00028493,2]
[315074741,1708803128853,-500.0,0.00028493,2]
[315074742,1708803128863,-500.0,0.00028493,2]
[315074743,1708803128873,-508.01,0.00028493,2]
[315074744,1708803128882,-883.75,0.00028493,2]
[315074745,1708803128892,-500.0,0.00028493,2]
[315074746,1708803128901,-500.0,0.00028493,2]
[315074747,1708803128911,-522.97,0.00028493,2]
[315074748,1708803128920,-443.21617068,0.00028493,2]
[315074749,1708803128930,-500.0,0.00028493,2]
[315074750,1708803128940,-500.0,0.00028493,2]
[315074751,1708803128950,-500.0,0.00028493,2]
[315074752,1708803128959,-500.0,0.00028493,2]
[315074753,1708803128969,-577.77,0.00028493,2]
[315074754,1708803128979,-500.0,0.00028493,2]
[315074755,1708803128988,-500.0,0.00028493,2]
[315074756,1708803128999,-500.0,0.00028493,2]
[315074757,1708803129009,-783.17,0.00028493,2]
[315074758,1708803129019,-500.0,0.00028493,2]
[315074759,1708803129032,-500.0,0.00028493,2]
[315074760,1708803129041,-803.41,0.00028493,2]
[315074761,1708803129051,-500.0,0.00028493,2]
[315074762,1708803129060,-546.45,0.00028493,2]
[315074763,1708803129070,-500.0,0.00028493,2]
[315074764,1708803129080,-500.0,0.00028493,2]
[315074765,1708803129090,-3299.19,0.00028493,2]
[315074766,1708803129099,-500.0,0.00028493,2]
[315074767,1708803129111,-500.0,0.00028493,2]
[315074768,1708803129122,-3559.89,0.00028493,2]
[315074769,1708803129131,-1355.1,0.00028493,2]
[315074770,1708803129146,-500.0,0.00028493,2]
[315074771,1708803129155,-2056.09,0.00028493,2]
[315074772,1708803129165,-500.0,0.00028493,2]
[315074773,1708803129174,-500.0,0.00028493,2]
[315074774,1708803129184,-500.0,0.00028493,2]
[315074775,1708803129193,-500.0,0.00028493,2]
[315074776,1708803129203,-500.0,0.00028493,2]
[315074777,1708803129212,-500.0,0.00028493,2]
[315074778,1708803129222,-500.0,0.00028493,2]
[315074779,1708803129232,-802.48,0.00028493,2]
[315074780,1708803129242,-500.0,0.00028493,2]
[315074781,1708803129251,-500.0,0.00028493,2]
[315074782,1708803129260,-500.0,0.00028493,2]
[315074783,1708803129270,-500.0,0.00028493,2]
[315074784,1708803129279,-1301.76,0.00028493,2]
[315074785,1708803129289,-536.21129131,0.00028493,2]
[315074786,1708803129299,-500.0,0.00028493,2]
[315074787,1708803129310,-500.0,0.00028493,2]
[315074788,1708803129319,-500.0,0.00028493,2]
[315074789,1708803129329,-500.0,0.00028493,2]
[315074790,1708803129339,-500.0,0.00028493,2]
[315074791,1708803129349,-500.0,0.00028493,2]
[315074792,1708803129359,-500.0,0.00028493,2]
[315074793,1708803129369,-2635.7,0.00028493,2]
[315074794,1708803129378,-708.14,0.00028493,2]
[315074795,1708803129388,-1143.03,0.00028493,2]
[315074796,1708803129398,-917.12,0.00028493,2]
[315074797,1708803129408,-500.0,0.00028493,2]
[315074798,1708803129418,-530.36369912,0.00028493,2]
[315074799,1708803129428,-500.0,0.00028493,2]
[315074800,1708803129438,-608.36,0.00028493,2]
[315074801,1708803129448,-659.11,0.00028493,2]
[315074802,1708803129458,-500.0,0.00028493,2]
[315074803,1708803129467,-500.0,0.00028493,2]
[315074804,1708803129478,-500.0,0.00028493,2]
[315074805,1708803129488,-837.68,0.00028493,2]
[315074806,1708803129498,-500.0,0.00028493,2]
[315074807,1708803129508,-6793.12,0.00028493,2]
[315074808,1708803129519,-1609.45,0.00028493,2]
[315074809,1708803129529,-1113.76,0.00028493,2]
[315074810,1708803129539,-500.0,0.00028493,2]
[315074811,1708803129549,-500.0,0.00028493,2]
[315074812,1708803129560,-192.3,0.00028493,2]
[315074813,1708803129570,-500.0,0.00028493,2]
[315074814,1708803129580,-1003.71,0.00028493,2]
[315074815,1708803129591,-2373.7,0.00028493,2]
[315074816,1708803129601,-500.0,0.00028493,2]
[315074817,1708803129610,-500.0,0.00028493,2]
[315074818,1708803129621,-500.0,0.00028493,2]
[315074819,1708803129631,-500.0,0.00028493,2]
[315074820,1708803129641,-500.0,0.00028493,2]
[315074821,1708803129651,-500.0,0.00028493,2]
[315074822,1708803129661,-500.0,0.00028493,2]
[315074823,1708803129671,-500.0,0.00028493,2]
[315074824,1708803129681,-2314.68,0.00028493,2]
[315074825,1708803129692,-500.0,0.00028493,2]
[315074826,1708803129702,-500.0,0.00028493,2]
[315074827,1708803129711,-1613.34,0.00028493,2]
[315074828,1708803129722,-1242.35,0.00028493,2]
[315074829,1708803129732,-660.51,0.00028493,2]
[315074830,1708803129742,-690.4,0.00028493,2]
[315074831,1708803129752,-500.0,0.00028493,2]
[315074832,1708803129763,-500.0,0.00028493,2]
[315074833,1708803129773,-500.0,0.00028493,2]
[315074834,1708803129783,-500.0,0.00028493,2]
[315074835,1708803129793,-2690.21,0.00028493,2]
[315074836,1708803129804,-500.0,0.00028493,2]
[315074837,1708803129813,-7014.8,0.00028493,2]
[315074838,1708803129823,-627.36436669,0.00028493,2]
[315074839,1708803129834,-1270.85,0.00028493,2]
[315074840,1708803129844,-500.0,0.00028493,2]
[315074841,1708803129854,-500.0,0.00028493,2]
[315074842,1708803129865,-500.0,0.00028493,2]
[315074843,1708803129875,-2320.5,0.00028493,2]
[315074844,1708803129885,-226.00636396,0.00028493,2]
[315074845,1708803129895,-574.10093933,0.00028493,2]
[315074846,1708803129906,-5957.84,0.00028493,2]
[315074847,1708803129916,-500.0,0.00028493,2]
[315074848,1708803129926,-500.0,0.00028493,2]
[315074849,1708803129936,-500.0,0.00028493,2]
[315074850,1708803129946,-500.0,0.00028493,2]
[315074851,1708803129956,-500.0,0.00028493,2]
[315074852,1708803129966,-500.0,0.00028493,2]
[315074853,1708803129976,-500.0,0.00028493,2]
[315074854,1708803129986,-1555.66,0.00028493,2]
[315074855,1708803129996,-500.0,0.00028493,2]
[315074856,1708803130006,-1338.89,0.00028493,2]
[315074857,1708803130016,-500.0,0.00028493,2]
[315074858,1708803130027,-500.0,0.00028493,2]
[315074859,1708803130039,-500.0,0.00028493,2]
[315074860,1708803130050,-500.0,0.00028493,2]
[315074861,1708803130060,-4041.57,0.00028493,2]
[315074862,1708803130070,-607.55,0.00028493,2]
[315074863,1708803130082,-500.0,0.00028493,2]
[315074864,1708803130092,-500.0,0.00028493,2]
[315074865,1708803130102,-500.0,0.00028493,2]
[315074866,1708803130113,-17314.55,0.00028493,2]
[315074867,1708803130123,-500.0,0.00028493,2]
[315074868,1708803130134,-500.0,0.00028493,2]
[315074869,1708803130144,-500.0,0.00028493,2]
[315074870,1708803130154,-544.84200551,0.00028493,2]
[315074871,1708803130164,-500.0,0.00028493,2]
[315074872,1708803130174,-500.0,0.00028493,2]
[315074873,1708803130184,-537.92,0.00028493,2]
[315074874,1708803130194,-500.0,0.00028493,2]
[315074875,1708803130206,-500.0,0.00028493,2]
[315074876,1708803130216,-500.0,0.00028493,2]
[315074877,1708803130226,-500.0,0.00028493,2]
[315074878,1708803130236,-500.0,0.00028493,2]
[315074879,1708803130246,-500.0,0.00028493,2]
[315074880,1708803130256,-500.0,0.00028493,2]
[315074881,1708803130267,-1672.21,0.00028493,2]
[315074882,1708803130277,-500.0,0.00028493,2]
[315074883,1708803130287,-418.03444283,0.00028493,2]
[315074884,1708803130296,-193.30939496,0.00028493,2]
[315074885,1708803130307,-500.0,0.00028493,2]
[315074886,1708803130318,-572.47,0.00028493,2]
[315074887,1708803130327,-961.1,0.00028493,2]
[315074888,1708803130338,-500.0,0.00028493,2]
[315074889,1708803130348,-500.0,0.00028493,2]
[315074890,1708803130358,-500.0,0.00028493,2]
[315074891,1708803130368,-500.0,0.00028493,2]
[315074892,1708803130378,-500.0,0.00028493,2]
[315074893,1708803130389,-500.0,0.00028493,2]
[315074894,1708803130399,-500.0,0.00028493,2]
[315074895,1708803130410,-500.0,0.00028493,2]
[315074896,1708803130421,-5616.67,0.00028493,2]
[315074897,1708803130431,-500.0,0.00028493,2]
[315074898,1708803130441,-500.0,0.00028493,2]
[315074899,1708803130452,-529.43,0.00028493,2]
[315074900,1708803130462,-524.87,0.00028493,2]
[315074901,1708803130471,-500.0,0.00028493,2]
[315074902,1708803130482,-500.0,0.00028493,2]
[315074903,1708803130493,-500.0,0.00028493,2]
[315074904,1708803130503,-385.33225139,0.00028493,2]
[315074905,1708803130513,-500.0,0.00028493,2]
[315074906,1708803130525,-4701.11,0.00028493,2]
[315074907,1708803130535,-234.39578446,0.00028493,2]
[315074908,1708803130546,-1428.36,0.00028493,2]
[315074909,1708803130557,-795.2,0.00028493,2]
[315074910,1708803130567,-500.0,0.00028493,2]
[315074911,1708803130578,-500.0,0.00028493,2]
[315074912,1708803130588,-500.0,0.00028493,2]
[315074913,1708803130599,-500.0,0.00028493,2]
[315074914,1708803130609,-854.47,0.00028493,2]
[315074915,1708803130619,-1665.61,0.00028493,2]
[315074916,1708803130630,-552.43321667,0.00028493,2]
[315074917,1708803130640,-500.0,0.00028493,2]
[315074918,1708803130650,-4566.55,0.00028493,2]
[315074919,1708803130661,-590.58743161,0.00028493,2]
[315074920,1708803130671,-500.0,0.00028493,2]
[315074921,1708803130681,-823.53,0.00028493,2]
[315074922,1708803130692,-500.0,0.00028493,2]
[315074923,1708803130702,-500.0,0.00028493,2]
[315074924,1708803130712,-500.0,0.00028493,2]
[315074925,1708803130722,-764.15,0.00028493,2]
[315074926,1708803130732,-500.0,0.00028493,2]
[315074927,1708803130742,-545.97496128,0.00028493,2]
[315074928,1708803130753,-500.0,0.00028493,2]
[315074929,1708803130763,-500.0,0.00028493,2]
[315074930,1708803130773,-1454.56,0.00028493,2]
[315074931,1708803130783,-9398.91,0.00028493,2]
[315074932,1708803130793,-827.47,0.00028493,2]
[315074933,1708803130803,-580.01,0.00028493,2]
[315074934,1708803130813,-500.0,0.00028493,2]
[315074935,1708803130824,-500.0,0.00028493,2]
[315074936,1708803130834,-524.27,0.00028493,2]
[315074937,1708803130844,-343.55661654,0.00028493,2]
[315074938,1708803130854,-500.0,0.00028493,2]
[315074939,1708803130865,-500.0,0.00028493,2]
[315074940,1708803130875,-500.0,0.00028493,2]
[315074941,1708803130886,-500.0,0.00028493,2]
[315074942,1708803130897,-1842.2,0.00028493,2]
[315074943,1708803130907,-511.51,0.00028493,2]
[315074944,1708803130917,-500.0,0.00028493,2]
[315074945,1708803130927,-500.0,0.00028493,2]
[315074946,1708803130937,-1147.43,0.00028493,2]
[315074947,1708803130947,-500.0,0.00028493,2]
[315074948,1708803130957,-500.0,0.00028493,2]
[315074949,1708803130968,-541.31,0.00028493,2]
[315074950,1708803130979,-500.0,0.00028493,2]
[315074951,1708803130989,-995.13,0.00028493,2]
[315074952,1708803130999,-500.0,0.00028493,2]
[315074953,1708803131009,-500.0,0.00028493,2]
[315074954,1708803131019,-500.0,0.00028493,2]
[315074955,1708803131033,-500.0,0.00028493,2]
[315074956,1708803131043,-5408.04,0.00028493,2]
[315074957,1708803131053,-500.0,0.00028493,2]
[315074958,1708803131063,-526.77177322,0.00028493,2]
[315074959,1708803131074,-667.27,0.00028493,2]
[315074960,1708803131085,-631.46,0.00028493,2]
[315074961,1708803131095,-500.0,0.00028493,2]
[315074962,1708803131106,-538.59,0.00028493,2]
[315074963,1708803131116,-500.0,0.00028493,2]
[315074964,1708803131126,-889.85,0.00028493,2]
[315074965,1708803131135,-500.0,0.00028493,2]
[315074966,1708803131145,-989.86,0.00028493,2]
[315074967,1708803131155,-813.16,0.00028493,2]
[315074968,1708803131164,-500.0,0.00028493,2]
[315074969,1708803131174,-500.0,0.00028493,2]
[315074970,1708803131183,-1010.54,0.00028493,2]
[315074971,1708803131193,-500.0,0.00028493,2]
[315074972,1708803131203,-702.19,0.00028493,2]
[315074973,1708803131213,-2273.32,0.00028493,2]
[315074974,1708803131223,-500.0,0.00028493,2]
[315074975,1708803131233,-500.0,0.00028493,2]
[315074976,1708803131243,-967.34,0.00028493,2]
[315074977,1708803131253,-5172.46,0.00028493,2]
[315074978,1708803131264,-964.79,0.00028493,2]
[315074979,1708803131274,-500.0,0.00028493,2]
[315074980,1708803131284,-500.0,0.00028493,2]
[315074981,1708803131295,-500.0,0.00028493,2]
[315074982,1708803131305,-500.0,0.00028493,2]
[315074983,1708803131315,-500.0,0.00028493,2]
[315074984,1708803131326,-500.0,0.00028493,2]
[315074985,1708803131337,-599.51,0.00028493,2]
[315074986,1708803131347,-500.0,0.00028493,2]
[315074987,1708803131357,-500.0,0.00028493,2]
[315074988,1708803131367,-752.25,0.00028493,2]
[315074989,1708803131378,-587.58,0.00028493,2]
[315074990,1708803131387,-500.0,0.00028493,2]
[315074991,1708803131397,-500.0,0.00028493,2]
[315074992,1708803131408,-500.0,0.00028493,2]
[315074993,1708803131418,-1254.89,0.00028493,2]
[315074994,1708803131428,-532.41957478,0.00028493,2]
[315074995,1708803131439,-625.57,0.00028493,2]
[315074996,1708803131449,-500.0,0.00028493,2]
[315074997,1708803131459,-240.03758513,0.00028493,2]
[315074998,1708803131470,-588.64,0.00028493,2]
[315074999,1708803131480,-617.74,0.00028493,2]
[315075000,1708803131490,-1064.6,0.00028493,2]
[315075001,1708803131501,-500.0,0.00028493,2]
[315075002,1708803131511,-500.0,0.00028493,2]
[315075003,1708803131521,-257.65974184,0.00028493,2]
[315075004,1708803131532,-1164.09,0.00028493,2]
[315075005,1708803131542,-500.0,0.00028493,2]
[315075006,1708803131552,-500.0,0.00028493,2]
[315075007,1708803131563,-500.0,0.00028493,2]
[315075008,1708803131574,-500.0,0.00028493,2]
[315075009,1708803131584,-500.0,0.00028493,2]
[315075010,1708803131594,-1100.36,0.00028493,2]
[315075011,1708803131604,-500.0,0.00028493,2]
[315075012,1708803131614,-500.0,0.00028493,2]
[315075013,1708803131624,-1036.73,0.00028493,2]
[315075014,1708803131635,-500.0,0.00028493,2]
[315075015,1708803131645,-709.2,0.00028493,2]
[315075016,1708803131655,-500.0,0.00028493,2]
[315075017,1708803131665,-500.0,0.00028493,2]
[315075018,1708803131675,-500.0,0.00028493,2]
[315075019,1708803131685,-940.79,0.00028493,2]
[315075020,1708803131695,-2912.08,0.00028493,2]
[315075021,1708803131706,-500.0,0.00028493,2]
[315075022,1708803131716,-500.0,0.00028493,2]
[315075023,1708803131726,-500.0,0.00028493,2]
[315075024,1708803131736,-500.0,0.00028493,2]
[315075025,1708803132065,-500.0,0.00028493,2]
[315075026,1708803132079,-500.0,0.00028493,2]
[315075027,1708803132091,-1056.04,0.00028493,2]
[315075028,1708803132101,-500.0,0.00028493,2]
[315075029,1708803132111,-500.0,0.00028493,2]
[315075030,1708803132123,-500.0,0.00028493,2]
[315075031,1708803132133,-2749.09,0.00028493,2]
[315075032,1708803132143,-2790.69,0.00028493,2]
[315075033,1708803132152,-188.42850078,0.00028493,2]
[315075034,1708803132162,-500.0,0.00028493,2]
[315075035,1708803132172,-1119.12,0.00028493,2]
[315075036,1708803132181,-1223.47,0.00028493,2]
[315075037,1708803132191,-500.0,0.00028493,2]
[315075038,1708803132210,-1975.24,0.00028493,2]
[315075039,1708803132220,-500.0,0.00028493,2]
[315075040,1708803132229,-500.0,0.00028493,2]
[315075041,1708803132239,-1958.55,0.00028493,2]
[315075042,1708803132249,-500.0,0.00028493,2]
[315075043,1708803132258,-549.07,0.00028493,2]
[315075044,1708803132268,-775.63,0.00028493,2]
[315075045,1708803132278,-500.0,0.00028493,2]
[315075046,1708803132287,-500.0,0.00028493,2]
[315075047,1708803132297,-500.0,0.00028493,2]
[315075048,1708803132306,-500.0,0.00028493,2]
[315075049,1708803132316,-500.0,0.00028493,2]
[315075050,1708803132326,-970.01,0.00028493,2]
[315075051,1708803132335,-500.0,0.00028493,2]
[315075052,1708803132345,-1744.69,0.00028493,2]
[315075053,1708803132355,-1611.08,0.00028493,2]
[315075054,1708803132364,-500.0,0.00028493,2]
[315075055,1708803132374,-814.05,0.00028493,2]
[315075056,1708803132384,-500.0,0.00028493,2]
[315075057,1708803132394,-1746.12,0.00028493,2]
[315075058,1708803132403,-500.0,0.00028493,2]
[315075059,1708803132413,-1946.07,0.00028493,2]
[315075060,1708803132422,-500.0,0.00028493,2]
[315075061,1708803132432,-525.54931239,0.00028493,2]
[315075062,1708803132441,-839.25,0.00028493,2]
[315075063,1708803132450,-500.0,0.00028493,2]
[315075064,1708803132460,-518.34,0.00028493,2]
[315075065,1708803132469,-1292.86,0.00028493,2]
[315075066,1708803132479,-500.0,0.00028493,2]
[315075067,1708803132489,-500.0,0.00028493,2]
[315075068,1708803132498,-500.0,0.00028493,2]
[315075069,1708803132508,-774.37,0.00028493,2]
[315075070,1708803132518,-669.33,0.00028493,2]
[315075071,1708803132528,-500.0,0.00028493,2]
[315075072,1708803132537,-500.0,0.00028493,2]
[315075073,1708803132547,-500.0,0.00028493,2]
[315075074,1708803132557,-4962.31,0.00028493,2]
[315075075,1708803132566,-500.0,0.00028493,2]
[315075076,1708803132576,-751.52,0.00028493,2]
[315075077,1708803132586,-1093.9,0.00028493,2]
[315075078,1708803132596,-500.0,0.00028493,2]
[315075079,1708803132606,-500.0,0.00028493,2]
[315075080,1708803132615,-500.0,0.00028493,2]
[315075081,1708803132625,-3661.17,0.00028493,2]
[315075082,1708803132635,-500.0,0.00028493,2]
[315075083,1708803132645,-500.0,0.00028493,2]
[315075084,1708803132654,-500.0,0.00028493,2]
[315075085,1708803132664,-500.0,0.00028493,2]
[315075086,1708803132674,-1737.75,0.00028493,2]
[315075087,1708803132683,-957.81,0.00028493,2]
[315075088,1708803132693,-767.59,0.00028493,2]
[315075089,1708803132703,-3237.43,0.00028493,2]
[315075090,1708803132712,-500.0,0.00028493,2]
[315075091,1708803132722,-500.0,0.00028493,2]
[315075092,1708803132731,-500.0,0.00028493,2]
[315075093,1708803132742,-500.0,0.00028493,2]
[315075094,1708803132752,-516.65253692,0.00028493,2]
[315075095,1708803132762,-500.0,0.00028493,2]
[315075096,1708803132771,-500.0,0.00028493,2]
[315075097,1708803132781,-9004.71,0.00028493,2]
[315075098,1708803132791,-500.0,0.00028493,2]
[315075099,1708803132801,-500.0,0.00028493,2]
[315075100,1708803132811,-1161.28,0.00028493,2]
[315075101,1708803132821,-502.36855736,0.00028493,2]
[315075102,1708803132831,-1128.57,0.00028493,2]
[315075103,1708803132841,-500.0,0.00028493,2]
[315075104,1708803132851,-530.20094336,0.00028493,2]
[315075105,1708803132861,-1472.41,0.00028493,2]
[315075106,1708803132870,-500.0,0.00028493,2]
[315075107,1708803132880,-1255.36,0.00028493,2]
[315075108,1708803132889,-1127.42,0.00028493,2]
[315075109,1708803132899,-500.0,0.00028493,2]
[315075110,1708803132908,-1003.31,0.00028493,2]
[315075111,1708803132918,-755.03,0.00028493,2]
[315075112,1708803132928,-639.8,0.00028493,2]
[315075113,1708803132938,-500.0,0.00028493,2]
[315075114,1708803132948,-360.24739669,0.00028493,2]
[315075115,1708803132958,-500.0,0.00028493,2]
[315075116,1708803132968,-507.37803949,0.00028493,2]
[315075117,1708803132977,-1461.29,0.00028493,2]
[315075118,1708803132987,-633.7,0.00028493,2]
[315075119,1708803132997,-997.83,0.00028493,2]
[315075120,1708803133006,-500.0,0.00028493,2]
[315075121,1708803133016,-1510.0,0.00028493,2]
[315075122,1708803133025,-500.0,0.00028493,2]
[315075123,1708803133038,-500.0,0.00028493,2]
[315075124,1708803133048,-500.0,0.00028493,2]
[315075125,1708803133058,-500.0,0.00028493,2]
[315075126,1708803133067,-1701.35,0.00028493,2]
[315075127,1708803133078,-1534.47,0.00028493,2]
[315075128,1708803133087,-1054.78,0.00028493,2]
[315075129,1708803133096,-672.9,0.00028493,2]
[315075130,1708803133106,-601.44,0.00028493,2]
[315075131,1708803133116,-643.23,0.00028493,2]
[315075132,1708803133126,-7295.84,0.00028493,2]
[315075133,1708803133135,-500.0,0.00028493,2]
[315075134,1708803133145,-812.11,0.00028493,2]
[315075135,1708803133155,-500.0,0.00028493,2]
[315075136,1708803133164,-500.0,0.00028493,2]
[315075137,1708803133173,-361.68,0.00028493,2]
[315075138,1708803133183,-500.0,0.00028493,2]
[315075139,1708803133192,-500.0,0.00028493,2]
[315075140,1708803133203,-500.0,0.00028493,2]
[315075141,1708803133214,-1704.32,0.00028493,2]
[315075142,1708803133223,-11405.28,0.00028493,2]
[315075143,1708803133232,-500.0,0.00028493,2]
[315075144,1708803133242,-845.08,0.00028493,2]
[315075145,1708803133251,-500.0,0.00028493,2]
[315075146,1708803133260,-500.0,0.00028493,2]
[315075147,1708803133270,-962.8,0.00028493,2]
[315075148,1708803133279,-2742.61,0.00028493,2]
[315075149,1708803133289,-500.0,0.00028493,2]
[315075150,1708803133299,-500.0,0.00028493,2]
[315075151,1708803133310,-500.0,0.00028493,2]
[315075152,1708803133319,-1029.73,0.00028493,2]
[315075153,1708803133329,-500.0,0.00028493,2]
[315075154,1708803133339,-500.0,0.00028493,2]
[315075155,1708803133349,-185.44716271,0.00028493,2]
[315075156,1708803133358,-555.78,0.00028493,2]
[315075157,1708803133367,-500.0,0.00028493,2]
[315075158,1708803133377,-618.9,0.00028493,2]
[315075159,1708803133386,-500.0,0.00028493,2]
[315075160,1708803133396,-500.0,0.00028493,2]
[315075161,1708803133405,-748.88,0.00028493,2]
[315075162,1708803133414,-500.0,0.00028493,2]
[315075163,1708803133424,-2316.98,0.00028493,2]
[315075164,1708803133433,-1664.89,0.00028493,2]
[315075165,1708803133442,-500.0,0.00028493,2]
[315075166,1708803133451,-500.0,0.00028493,2]
[315075167,1708803133461,-500.0,0.00028493,2]
[315075168,1708803133470,-677.04,0.00028493,2]
[315075169,1708803133480,-3191.92,0.00028493,2]
[315075170,1708803133491,-500.0,0.00028493,2]
[315075171,1708803133505,-2773.02,0.00028493,2]
[315075172,1708803133515,-500.0,0.00028493,2]
[315075173,1708803133526,-1060.5,0.00028493,2]
[315075174,1708803133535,-500.0,0.00028493,2]
[315075175,1708803133545,-2325.67,0.00028493,2]
[315075176,1708803133556,-500.0,0.00028493,2]
[315075177,1708803133567,-500.0,0.00028493,2]
[315075178,1708803133577,-981.12,0.00028493,2]
[315075179,1708803133587,-200.0,0.000285,2]
[315075180,1708803133598,-27865.49,0.00028505,2]
[315075181,1708803133608,-53611.97330766,0.00028507,2]
[315075182,1708803133619,-151.99310252,0.00028524,2]
[315075183,1708803133629,-5515.18060297,0.00028534,2]
[315075184,1708803133639,-1472.25196939,0.00028534,2]
[315075185,1708803133650,-2305.35545782,0.00028534,2]
[315075186,1708803133660,-925.07041306,0.00028534,2]
[315075187,1708803133670,-151.99310252,0.00028559,2]
[315075188,1708803133680,-500.0,0.00028607,2]
[315075189,1708803133690,-500.0,0.00028607,2]
[315075190,1708803133699,-450.0,0.00028607,2]
[315075191,1708803133709,-500.0,0.00028607,2]